Workbook

Sheet Juni2010 (2)
A1: Løn | B1: 1 juni 2010 - 30 juni 2010 | Q1: Time beregning:
A2: Lønart | G2: 3025 | H2: 3425 | I2: 3426 | J2: 3600 | K2: 3602 | L2: 3605 | M2: 3610 | N2: 9091 | O2: 9092 | Q2: Betalt pause ved vagt over 5 timer | U2: 00:25:00 | V2: minutter | W2: 00:00:00 | X2: 06:00:00 | Y2: 18:00:00 | Z2: 14:00:00
A3: Dato | B3: Dag | D3: Vagt | E3: Start | F3: Slut | G3: Time SID | H3: Overtid 1-3 time | I3: Overtid 4 - time | J3: Aftenstillæg | K3: Nattillæg 00-06 | L3: Søndags tillæg | M3: Delt tjenste
A4: 2010-04-01 | B4: =PROPER(TEXT(A4,"ddd")) -> To | C4: =HelligdagsNavn(A4,0,0) -> Skærtorsdag | D4: 111 | E4: =IF($D4="","",IF(VLOOKUP($D4,#REF!,2)=0,"",VLOOKUP($D4,#REF!,2))) ->  | F4: =IF($D4="","",IF(VLOOKUP($D4,#REF!,3)="","",VLOOKUP($D4,#REF!,3))) ->  | G4: =IF($D4="","",VLOOKUP($D4,#REF!,13)) ->  | J4: =IF(E4<>"",IF(WEEKDAY(A4,2)<>6,IF(E4>F4,(F4-MAX(E4,(18/24))+(E4>F4))-F4,IF(F4>Y$2,(F4-MAX(E4,(18/24))),"")),IF(E4>F4,(F4-MAX(E4,(14/24))+(E4>F4))-F4,IF(F4>Z$2,(F4-MAX(E4,(14/24))),""))),"") ->  | K4: =IF(G4<>"",IF(S4<X$2,(X$2-S4),IF(V4<X$2,(V4-W$2),"")),"") ->  | L4: =IF(G4<>0,IF(WEEKDAY(A4,2)=7,G4,""),"") ->  | M4: =IF($D4="","",IF(VLOOKUP($D4,#REF!,15)="","",VLOOKUP($D4,#REF!,15))) ->  | N4: =IF(SUM(H4:I4)=0,"",SUM(H4:I4)) ->  | Q4: =IF(E4="","",HOUR(E4)) ->  | R4: =IF(E4="","",MINUTE(E4)) ->  | S4: =IF(E4="","",TIME(HOUR(E4),MINUTE(E4),0)) ->  | T4: =IF(F4="","",HOUR(F4)) ->  | U4: =IF(F4="","",MINUTE(F4)) ->  | V4: =TIME(HOUR(F4),MINUTE(F4),0) -> 
A5: 2010-04-02 | B5: =PROPER(TEXT(A5,"ddd")) -> Fr | C5: =HelligdagsNavn(A5,0,0) -> Langfredag | D5: 134 | E5: =IF($D5="","",IF(VLOOKUP($D5,#REF!,2)=0,"",VLOOKUP($D5,#REF!,2))) ->  | F5: =IF($D5="","",IF(VLOOKUP($D5,#REF!,3)="","",VLOOKUP($D5,#REF!,3))) ->  | G5: =IF($D5="","",VLOOKUP($D5,#REF!,13)) ->  | J5: =IF(E5<>"",IF(WEEKDAY(A5,2)<>6,IF(E5>F5,(F5-MAX(E5,(18/24))+(E5>F5))-F5,IF(F5>Y$2,(F5-MAX(E5,(18/24))),"")),IF(E5>F5,(F5-MAX(E5,(14/24))+(E5>F5))-F5,IF(F5>Z$2,(F5-MAX(E5,(14/24))),""))),"") ->  | L5: =IF(G5<>0,IF(WEEKDAY(A5,2)=7,G5,""),"") ->  | M5: =IF($D5="","",IF(VLOOKUP($D5,#REF!,15)="","",VLOOKUP($D5,#REF!,15))) ->  | N5: =IF(SUM(H5:I5)=0,"",SUM(H5:I5)) ->  | V5: =TIME(HOUR(F5),MINUTE(F5),0) -> 
A6: 2010-04-03 | B6: =PROPER(TEXT(A6,"ddd")) -> Lø | D6: 612 | E6: =IF($D6="","",IF(VLOOKUP($D6,#REF!,2)=0,"",VLOOKUP($D6,#REF!,2))) ->  | F6: =IF($D6="","",IF(VLOOKUP($D6,#REF!,3)="","",VLOOKUP($D6,#REF!,3))) ->  | G6: =IF($D6="","",VLOOKUP($D6,#REF!,13)) ->  | J6: =IF(E6<>"",IF(WEEKDAY(A6,2)<>6,IF(E6>F6,(F6-MAX(E6,(18/24))+(E6>F6))-F6,IF(F6>Y$2,(F6-MAX(E6,(18/24))),"")),IF(E6>F6,(F6-MAX(E6,(14/24))+(E6>F6))-F6,IF(F6>Z$2,(F6-MAX(E6,(14/24))),""))),"") ->  | M6: =IF($D6="","",IF(VLOOKUP($D6,#REF!,15)="","",VLOOKUP($D6,#REF!,15))) ->  | V6: =TIME(HOUR(F6),MINUTE(F6),0) -> 
A7: 2010-04-04 | B7: Sø | C7: Påskedag | D7: 711 | E7: =IF($D7="","",IF(VLOOKUP($D7,#REF!,2)=0,"",VLOOKUP($D7,#REF!,2))) ->  | F7: =IF($D7="","",IF(VLOOKUP($D7,#REF!,3)="","",VLOOKUP($D7,#REF!,3))) ->  | G7: =IF($D7="","",VLOOKUP($D7,#REF!,13)) ->  | M7: =IF($D7="","",IF(VLOOKUP($D7,#REF!,15)="","",VLOOKUP($D7,#REF!,15))) ->  | O7: =IF($D7="","",IF(VLOOKUP($D7,#REF!,16)="","",VLOOKUP($D7,#REF!,16))) ->  | V7: =TIME(HOUR(F7),MINUTE(F7),0) -> 
A8: 2010-04-05 | B8: Ma | C8: 2. Påskedag | D8: 122 | E8: =IF($D8="","",IF(VLOOKUP($D8,#REF!,2)=0,"",VLOOKUP($D8,#REF!,2))) ->  | F8: =IF($D8="","",IF(VLOOKUP($D8,#REF!,3)="","",VLOOKUP($D8,#REF!,3))) ->  | G8: =IF($D8="","",VLOOKUP($D8,#REF!,13)) ->  | M8: =IF($D8="","",IF(VLOOKUP($D8,#REF!,15)="","",VLOOKUP($D8,#REF!,15))) ->  | O8: =IF($D8="","",IF(VLOOKUP($D8,#REF!,16)="","",VLOOKUP($D8,#REF!,16))) ->  | V8: =TIME(HOUR(F8),MINUTE(F8),0) -> 
A9: 2010-04-06 | B9: Ti | D9: 124 | E9: =IF($D9="","",IF(VLOOKUP($D9,#REF!,2)=0,"",VLOOKUP($D9,#REF!,2))) ->  | F9: =IF($D9="","",IF(VLOOKUP($D9,#REF!,3)="","",VLOOKUP($D9,#REF!,3))) ->  | G9: =IF($D9="","",VLOOKUP($D9,#REF!,13)) ->  | L9: =IF(G9<>0,IF(WEEKDAY(A9,2)=7,G9,""),"") ->  | M9: =IF($D9="","",IF(VLOOKUP($D9,#REF!,15)="","",VLOOKUP($D9,#REF!,15))) ->  | O9: =IF($D9="","",IF(VLOOKUP($D9,#REF!,16)="","",VLOOKUP($D9,#REF!,16))) ->  | V9: =IF(F9="","",TIME(HOUR(F9),MINUTE(F9),0)) -> 
A10: 2010-04-07 | B10: On | D10: 606 | E10: =IF($D10="","",IF(VLOOKUP($D10,#REF!,2)=0,"",VLOOKUP($D10,#REF!,2))) ->  | F10: =IF($D10="","",IF(VLOOKUP($D10,#REF!,3)="","",VLOOKUP($D10,#REF!,3))) ->  | G10: =IF($D10="","",IF(VLOOKUP($D10,#REF!,13)="","",VLOOKUP($D10,#REF!,13))) ->  | L10: =IF(G10<>0,IF(WEEKDAY(A10,2)=7,G10,""),"") ->  | M10: =IF($D10="","",IF(VLOOKUP($D10,#REF!,15)="","",VLOOKUP($D10,#REF!,15))) ->  | O10: =IF($D10="","",IF(VLOOKUP($D10,#REF!,16)="","",VLOOKUP($D10,#REF!,16))) -> 
A11: 2010-04-08 | B11: To | D11: 122 | E11: =IF($D11="","",IF(VLOOKUP($D11,#REF!,2)=0,"",VLOOKUP($D11,#REF!,2))) ->  | F11: =IF($D11="","",IF(VLOOKUP($D11,#REF!,3)="","",VLOOKUP($D11,#REF!,3))) ->  | G11: =IF($D11="","",IF(VLOOKUP($D11,#REF!,13)="","",VLOOKUP($D11,#REF!,13))) ->  | L11: =IF(G11<>0,IF(WEEKDAY(A11,2)=7,G11,""),"") ->  | M11: =IF($D11="","",IF(VLOOKUP($D11,#REF!,15)="","",VLOOKUP($D11,#REF!,15))) ->  | O11: =IF($D11="","",IF(VLOOKUP($D11,#REF!,16)="","",VLOOKUP($D11,#REF!,16))) -> 
A12: 2010-04-09 | B12: Fr | D12: afsp. | E12: =IF($D12="","",IF(VLOOKUP($D12,#REF!,2)=0,"",VLOOKUP($D12,#REF!,2))) ->  | F12: =IF($D12="","",IF(VLOOKUP($D12,#REF!,3)="","",VLOOKUP($D12,#REF!,3))) ->  | G12: =IF($D12="","",IF(VLOOKUP($D12,#REF!,13)="","",VLOOKUP($D12,#REF!,13))) ->  | M12: =IF($D12="","",IF(VLOOKUP($D12,#REF!,15)="","",VLOOKUP($D12,#REF!,15))) ->  | O12: =IF($D12="","",IF(VLOOKUP($D12,#REF!,16)="","",VLOOKUP($D12,#REF!,16))) -> 
A13: 2010-04-10 | B13: Lø | D13: 121 | E13: =IF($D13="","",IF(VLOOKUP($D13,#REF!,2)=0,"",VLOOKUP($D13,#REF!,2))) ->  | F13: =IF($D13="","",IF(VLOOKUP($D13,#REF!,3)="","",VLOOKUP($D13,#REF!,3))) ->  | G13: =IF($D13="","",IF(VLOOKUP($D13,#REF!,13)="","",VLOOKUP($D13,#REF!,13))) ->  | M13: =IF($D13="","",IF(VLOOKUP($D13,#REF!,15)="","",VLOOKUP($D13,#REF!,15))) ->  | O13: =IF($D13="","",IF(VLOOKUP($D13,#REF!,16)="","",VLOOKUP($D13,#REF!,16))) -> 
A14: 2010-04-11 | B14: Sø | D14: 606 | E14: =IF($D14="","",IF(VLOOKUP($D14,#REF!,2)=0,"",VLOOKUP($D14,#REF!,2))) ->  | F14: =IF($D14="","",IF(VLOOKUP($D14,#REF!,3)="","",VLOOKUP($D14,#REF!,3))) ->  | G14: =IF($D14="","",IF(VLOOKUP($D14,#REF!,13)="","",VLOOKUP($D14,#REF!,13))) ->  | M14: =IF($D14="","",IF(VLOOKUP($D14,#REF!,15)="","",VLOOKUP($D14,#REF!,15))) ->  | O14: =IF($D14="","",IF(VLOOKUP($D14,#REF!,16)="","",VLOOKUP($D14,#REF!,16))) -> 
A15: 2010-04-12 | B15: Ma | D15: 606 | E15: =IF($D15="","",IF(VLOOKUP($D15,#REF!,2)=0,"",VLOOKUP($D15,#REF!,2))) ->  | F15: =IF($D15="","",IF(VLOOKUP($D15,#REF!,3)="","",VLOOKUP($D15,#REF!,3))) ->  | G15: =IF($D15="","",IF(VLOOKUP($D15,#REF!,13)="","",VLOOKUP($D15,#REF!,13))) ->  | M15: =IF($D15="","",IF(VLOOKUP($D15,#REF!,15)="","",VLOOKUP($D15,#REF!,15))) ->  | O15: =IF($D15="","",IF(VLOOKUP($D15,#REF!,16)="","",VLOOKUP($D15,#REF!,16))) -> 
A16: 2010-04-13 | B16: Ti | D16: 127 | E16: =IF($D16="","",IF(VLOOKUP($D16,#REF!,2)=0,"",VLOOKUP($D16,#REF!,2))) ->  | F16: =IF($D16="","",IF(VLOOKUP($D16,#REF!,3)="","",VLOOKUP($D16,#REF!,3))) ->  | G16: =IF($D16="","",IF(VLOOKUP($D16,#REF!,13)="","",VLOOKUP($D16,#REF!,13))) ->  | M16: =IF($D16="","",IF(VLOOKUP($D16,#REF!,15)="","",VLOOKUP($D16,#REF!,15))) ->  | O16: =IF($D16="","",IF(VLOOKUP($D16,#REF!,16)="","",VLOOKUP($D16,#REF!,16))) -> 
A17: 2010-04-14 | B17: On | D17: x | E17: =IF($D17="","",IF(VLOOKUP($D17,#REF!,2)=0,"",VLOOKUP($D17,#REF!,2))) ->  | F17: =IF($D17="","",IF(VLOOKUP($D17,#REF!,3)="","",VLOOKUP($D17,#REF!,3))) ->  | G17: =IF($D17="","",IF(VLOOKUP($D17,#REF!,13)="","",VLOOKUP($D17,#REF!,13))) ->  | M17: =IF($D17="","",IF(VLOOKUP($D17,#REF!,15)="","",VLOOKUP($D17,#REF!,15))) ->  | O17: =IF($D17="","",IF(VLOOKUP($D17,#REF!,16)="","",VLOOKUP($D17,#REF!,16))) -> 
A18: 2010-04-15 | B18: To | D18: x | E18: =IF($D18="","",IF(VLOOKUP($D18,#REF!,2)=0,"",VLOOKUP($D18,#REF!,2))) ->  | F18: =IF($D18="","",IF(VLOOKUP($D18,#REF!,3)="","",VLOOKUP($D18,#REF!,3))) ->  | G18: =IF($D18="","",IF(VLOOKUP($D18,#REF!,13)="","",VLOOKUP($D18,#REF!,13))) ->  | M18: =IF($D18="","",IF(VLOOKUP($D18,#REF!,15)="","",VLOOKUP($D18,#REF!,15))) ->  | O18: =IF($D18="","",IF(VLOOKUP($D18,#REF!,16)="","",VLOOKUP($D18,#REF!,16))) -> 
A19: 2010-04-16 | B19: Fr | D19: 142 | E19: =IF($D19="","",IF(VLOOKUP($D19,#REF!,2)=0,"",VLOOKUP($D19,#REF!,2))) ->  | F19: =IF($D19="","",IF(VLOOKUP($D19,#REF!,3)="","",VLOOKUP($D19,#REF!,3))) ->  | G19: =IF($D19="","",IF(VLOOKUP($D19,#REF!,13)="","",VLOOKUP($D19,#REF!,13))) ->  | M19: =IF($D19="","",IF(VLOOKUP($D19,#REF!,15)="","",VLOOKUP($D19,#REF!,15))) ->  | O19: =IF($D19="","",IF(VLOOKUP($D19,#REF!,16)="","",VLOOKUP($D19,#REF!,16))) -> 
A20: 2010-04-17 | B20: Lø | D20: 143f | E20: =IF($D20="","",IF(VLOOKUP($D20,#REF!,2)=0,"",VLOOKUP($D20,#REF!,2))) ->  | F20: =IF($D20="","",IF(VLOOKUP($D20,#REF!,3)="","",VLOOKUP($D20,#REF!,3))) ->  | G20: =IF($D20="","",IF(VLOOKUP($D20,#REF!,13)="","",VLOOKUP($D20,#REF!,13))) ->  | M20: =IF($D20="","",IF(VLOOKUP($D20,#REF!,15)="","",VLOOKUP($D20,#REF!,15))) ->  | O20: =IF($D20="","",IF(VLOOKUP($D20,#REF!,16)="","",VLOOKUP($D20,#REF!,16))) -> 
A21: 2010-04-18 | B21: Sø | D21: 147 | E21: =IF($D21="","",IF(VLOOKUP($D21,#REF!,2)=0,"",VLOOKUP($D21,#REF!,2))) ->  | F21: =IF($D21="","",IF(VLOOKUP($D21,#REF!,3)="","",VLOOKUP($D21,#REF!,3))) ->  | G21: =IF($D21="","",IF(VLOOKUP($D21,#REF!,13)="","",VLOOKUP($D21,#REF!,13))) ->  | M21: =IF($D21="","",IF(VLOOKUP($D21,#REF!,15)="","",VLOOKUP($D21,#REF!,15))) ->  | O21: =IF($D21="","",IF(VLOOKUP($D21,#REF!,16)="","",VLOOKUP($D21,#REF!,16))) -> 
A22: 2010-04-19 | B22: Ma | D22: 146 | E22: =IF($D22="","",IF(VLOOKUP($D22,#REF!,2)=0,"",VLOOKUP($D22,#REF!,2))) ->  | F22: =IF($D22="","",IF(VLOOKUP($D22,#REF!,3)="","",VLOOKUP($D22,#REF!,3))) ->  | G22: =IF($D22="","",IF(VLOOKUP($D22,#REF!,13)="","",VLOOKUP($D22,#REF!,13))) ->  | M22: =IF($D22="","",IF(VLOOKUP($D22,#REF!,15)="","",VLOOKUP($D22,#REF!,15))) ->  | O22: =IF($D22="","",IF(VLOOKUP($D22,#REF!,16)="","",VLOOKUP($D22,#REF!,16))) -> 
A23: 2010-04-20 | B23: Ti | D23: 145 | E23: =IF($D23="","",IF(VLOOKUP($D23,#REF!,2)=0,"",VLOOKUP($D23,#REF!,2))) ->  | F23: =IF($D23="","",IF(VLOOKUP($D23,#REF!,3)="","",VLOOKUP($D23,#REF!,3))) ->  | G23: =IF($D23="","",IF(VLOOKUP($D23,#REF!,13)="","",VLOOKUP($D23,#REF!,13))) ->  | M23: =IF($D23="","",IF(VLOOKUP($D23,#REF!,15)="","",VLOOKUP($D23,#REF!,15))) ->  | O23: =IF($D23="","",IF(VLOOKUP($D23,#REF!,16)="","",VLOOKUP($D23,#REF!,16))) -> 
A24: 2010-04-21 | B24: On | D24: afsp. | E24: =IF($D24="","",IF(VLOOKUP($D24,#REF!,2)=0,"",VLOOKUP($D24,#REF!,2))) ->  | F24: =IF($D24="","",IF(VLOOKUP($D24,#REF!,3)="","",VLOOKUP($D24,#REF!,3))) ->  | G24: =IF($D24="","",IF(VLOOKUP($D24,#REF!,13)="","",VLOOKUP($D24,#REF!,13))) ->  | M24: =IF($D24="","",IF(VLOOKUP($D24,#REF!,15)="","",VLOOKUP($D24,#REF!,15))) ->  | O24: =IF($D24="","",IF(VLOOKUP($D24,#REF!,16)="","",VLOOKUP($D24,#REF!,16))) -> 
A25: 2010-04-22 | B25: To | D25: 715 | E25: =IF($D25="","",IF(VLOOKUP($D25,#REF!,2)=0,"",VLOOKUP($D25,#REF!,2))) ->  | F25: =IF($D25="","",IF(VLOOKUP($D25,#REF!,3)="","",VLOOKUP($D25,#REF!,3))) ->  | G25: =IF($D25="","",IF(VLOOKUP($D25,#REF!,13)="","",VLOOKUP($D25,#REF!,13))) ->  | M25: =IF($D25="","",IF(VLOOKUP($D25,#REF!,15)="","",VLOOKUP($D25,#REF!,15))) ->  | O25: =IF($D25="","",IF(VLOOKUP($D25,#REF!,16)="","",VLOOKUP($D25,#REF!,16))) -> 
A26: 2010-04-23 | B26: Fr | E26: =IF($D26="","",IF(VLOOKUP($D26,#REF!,2)=0,"",VLOOKUP($D26,#REF!,2))) ->  | F26: =IF($D26="","",IF(VLOOKUP($D26,#REF!,3)="","",VLOOKUP($D26,#REF!,3))) ->  | G26: =IF($D26="","",IF(VLOOKUP($D26,#REF!,13)="","",VLOOKUP($D26,#REF!,13))) ->  | M26: =IF($D26="","",IF(VLOOKUP($D26,#REF!,15)="","",VLOOKUP($D26,#REF!,15))) ->  | O26: =IF($D26="","",IF(VLOOKUP($D26,#REF!,16)="","",VLOOKUP($D26,#REF!,16))) -> 
A27: 2010-04-24 | B27: Lø | D27: 612 | E27: =IF($D27="","",IF(VLOOKUP($D27,#REF!,2)=0,"",VLOOKUP($D27,#REF!,2))) ->  | F27: =IF($D27="","",IF(VLOOKUP($D27,#REF!,3)="","",VLOOKUP($D27,#REF!,3))) ->  | G27: =IF($D27="","",IF(VLOOKUP($D27,#REF!,13)="","",VLOOKUP($D27,#REF!,13))) ->  | M27: =IF($D27="","",IF(VLOOKUP($D27,#REF!,15)="","",VLOOKUP($D27,#REF!,15))) ->  | O27: =IF($D27="","",IF(VLOOKUP($D27,#REF!,16)="","",VLOOKUP($D27,#REF!,16))) -> 
A28: 2010-04-25 | B28: Sø | E28: =IF($D28="","",IF(VLOOKUP($D28,#REF!,2)=0,"",VLOOKUP($D28,#REF!,2))) ->  | F28: =IF($D28="","",IF(VLOOKUP($D28,#REF!,3)="","",VLOOKUP($D28,#REF!,3))) ->  | G28: =IF($D28="","",IF(VLOOKUP($D28,#REF!,13)="","",VLOOKUP($D28,#REF!,13))) ->  | M28: =IF($D28="","",IF(VLOOKUP($D28,#REF!,15)="","",VLOOKUP($D28,#REF!,15))) ->  | O28: =IF($D28="","",IF(VLOOKUP($D28,#REF!,16)="","",VLOOKUP($D28,#REF!,16))) -> 
A29: 2010-04-26 | B29: Ma | E29: =IF($D29="","",IF(VLOOKUP($D29,#REF!,2)=0,"",VLOOKUP($D29,#REF!,2))) ->  | F29: =IF($D29="","",IF(VLOOKUP($D29,#REF!,3)="","",VLOOKUP($D29,#REF!,3))) ->  | G29: =IF($D29="","",IF(VLOOKUP($D29,#REF!,13)="","",VLOOKUP($D29,#REF!,13))) ->  | M29: =IF($D29="","",IF(VLOOKUP($D29,#REF!,15)="","",VLOOKUP($D29,#REF!,15))) ->  | O29: =IF($D29="","",IF(VLOOKUP($D29,#REF!,16)="","",VLOOKUP($D29,#REF!,16))) -> 
A30: 2010-04-27 | B30: Ti | E30: =IF($D30="","",IF(VLOOKUP($D30,#REF!,2)=0,"",VLOOKUP($D30,#REF!,2))) ->  | F30: =IF($D30="","",IF(VLOOKUP($D30,#REF!,3)="","",VLOOKUP($D30,#REF!,3))) ->  | G30: =IF($D30="","",IF(VLOOKUP($D30,#REF!,13)="","",VLOOKUP($D30,#REF!,13))) ->  | M30: =IF($D30="","",IF(VLOOKUP($D30,#REF!,15)="","",VLOOKUP($D30,#REF!,15))) ->  | O30: =IF($D30="","",IF(VLOOKUP($D30,#REF!,16)="","",VLOOKUP($D30,#REF!,16))) -> 
A31: 2010-04-28 | B31: On | D31: afsp. | E31: =IF($D31="","",IF(VLOOKUP($D31,#REF!,2)=0,"",VLOOKUP($D31,#REF!,2))) ->  | F31: =IF($D31="","",IF(VLOOKUP($D31,#REF!,3)="","",VLOOKUP($D31,#REF!,3))) ->  | G31: =IF($D31="","",IF(VLOOKUP($D31,#REF!,13)="","",VLOOKUP($D31,#REF!,13))) ->  | M31: =IF($D31="","",IF(VLOOKUP($D31,#REF!,15)="","",VLOOKUP($D31,#REF!,15))) ->  | O31: =IF($D31="","",IF(VLOOKUP($D31,#REF!,16)="","",VLOOKUP($D31,#REF!,16))) -> 
A32: 2010-04-29 | B32: =IF(A32="","",PROPER(TEXT(A32,"ddd"))) -> To | D32: afsp. | E32: =IF($D32="","",IF(VLOOKUP($D32,#REF!,2)=0,"",VLOOKUP($D32,#REF!,2))) ->  | F32: =IF($D32="","",IF(VLOOKUP($D32,#REF!,3)="","",VLOOKUP($D32,#REF!,3))) ->  | G32: =IF($D32="","",IF(VLOOKUP($D32,#REF!,13)="","",VLOOKUP($D32,#REF!,13))) ->  | M32: =IF($D32="","",IF(VLOOKUP($D32,#REF!,15)="","",VLOOKUP($D32,#REF!,15))) ->  | O32: =IF($D32="","",IF(VLOOKUP($D32,#REF!,16)="","",VLOOKUP($D32,#REF!,16))) -> 
A33: 2010-04-30 | B33: =IF(A33="","",PROPER(TEXT(A33,"ddd"))) -> Fr | C33: Store Bededag | D33: x | E33: =IF($D33="","",IF(VLOOKUP($D33,#REF!,2)=0,"",VLOOKUP($D33,#REF!,2))) ->  | F33: =IF($D33="","",IF(VLOOKUP($D33,#REF!,3)="","",VLOOKUP($D33,#REF!,3))) ->  | G33: =IF($D33="","",IF(VLOOKUP($D33,#REF!,13)="","",VLOOKUP($D33,#REF!,13))) ->  | M33: =IF($D33="","",IF(VLOOKUP($D33,#REF!,15)="","",VLOOKUP($D33,#REF!,15))) ->  | O33: =IF($D33="","",IF(VLOOKUP($D33,#REF!,16)="","",VLOOKUP($D33,#REF!,16))) -> 
C34: 1. Juledag | E34: =IF($D34="","",IF(VLOOKUP($D34,#REF!,2)=0,"",VLOOKUP($D34,#REF!,2))) ->  | F34: =IF($D34="","",IF(VLOOKUP($D34,#REF!,3)="","",VLOOKUP($D34,#REF!,3))) ->  | G34: =IF($D34="","",IF(VLOOKUP($D34,#REF!,13)="","",VLOOKUP($D34,#REF!,13))) ->  | M34: =IF($D34="","",IF(VLOOKUP($D34,#REF!,15)="","",VLOOKUP($D34,#REF!,15))) ->  | O34: =IF($D34="","",IF(VLOOKUP($D34,#REF!,16)="","",VLOOKUP($D34,#REF!,16))) -> 
A35: Total timer | G35: =IF(SUM(G9:G34)<>"0",SUM(G4:G34),"") ->  | H35: =IF(SUM(H4:H34)<>"0",SUM(H4:H34),"") -> 0 | I35: 0 | N35: =SUM(N4:N34) -> 0 | O35: =SUM(O4:O34) -> 
A36: Timer 1/100 | G36: =IF(G35<>"",ROUND(G35*24,2),"") ->  | H36: =IF(H35<>"",ROUND(H35*24,2),"") -> 0 | I36: 0 | N36: 0
A37: Satser | G37: =Satser!B7 -> 107.35 | H37: =Satser!B9 -> 36.35 | I37: =Satser!B12 -> 58.1 | J37: 18.8 | K37: 21.81 | L37: 28.68 | M37: 67
G38: =IF(G35<>"",G36*G37,"") ->  | H38: =IF(H35<>"",H36*H37,"") -> 0 | I38: 0 | M38: =IF(M35<>"",M35*M37,"") -> 
A40: Lønart
A41: 3025 | G41: =G35 -> 
A42: 3425 | G42: =H35 -> 0
A43: 3426 | G43: =I35 -> 0
A44: Timer | G44: =SUM(G41:G43) ->  | H44: =IF(G44<>"",ROUND(G44*24,2),"") -> 
H45: =G37*H44 -> 

Sheet september2010
A1: Løn | B1: =PROPER(TEXT(A4,"dd mmmm åååå")) & PROPER(TEXT(A36," - dd mmmm åååå")) -> 15 December 2001 - 16 Januar 2002 | J1: Uge : | K1: =IF(A4="","",TRUNC((A4-WEEKDAY(A4,2)-DATE(YEAR(A4+4-WEEKDAY(A4,2)),1,-10))/7)) -> 50 | L1: - | N1: =IF(A25="","",TRUNC((A25-WEEKDAY(A25,2)-DATE(YEAR(A25+4-WEEKDAY(A25,2)),1,-10))/7)) -> 1 | W1: Time beregning: | AH1: 06:00:00 | AI1: 18:00:00
A2: Lønart | W2: Betalt pause ved vagt over 5 timer | AA2: 00:25:00 | AB2: minutter | AC2: 00:00:00 | AD2: 06:00:00 | AE2: 17:00:00 | AF2: 14:00:00
A3: Dato | B3: Dag | D3: Start | E3: Slut | F3: Pause | G3: Arb. Tid | H3: Overtid 1-2 time | I3: Overtid 3-4 time | J3: Overtid 5 - time | K3: Forskudt tid alle dage 18-22 | M3: Natarbejde 22-06 | O3: Lørdag tillæg 15 - 24 | P3: Søndag tillæg 00 - 24 | Q3: Optjent afspadsering | R3: Afholdt afspadsering | S3: Syge Timer | T3: norm
A4: 2001-12-15 | B4: =PROPER(TEXT(A4,"ddd")) -> Lø | C4: =HelligdagsNavn(A4,0,0) ->  | D4: 07:00:00 | E4: 16:00:00 | F4: 00:15:00 | G4: =IF(D4="","",(E4-D4)+(D4>E4)-F4+H4+I4+J4) -> 0.4791666667 | H4: 02:00:00 | I4: 00:45:00 | K4: =ColTime(TIME(18,0,0),TIME(23,0,0),D4,E4) -> 00:00:00 | M4: =ColTime(TIME(23,0,0),TIME(6,0,0),D4,E4) -> 00:00:00 | O4: =IF(WEEKDAY(A4,2)=6,ColTime(TIME(15,0,0),TIME(24,0,0),D4,E4),"") -> 01:00:00 | P4: =IF(D4="","",IF(D4<6/24,6/24-D4,"")) ->  | Q4: =H4+I4+J4 -> 02:45:00 | T4: =CHOOSE(WEEKDAY(A4,2),norm!C$1,norm!C$2,norm!C$3,norm!C$4,norm!C$5,norm!C$6,norm!C$7) -> 00:00:00 | W4: =IF(D4="","",HOUR(D4)) -> 7 | X4: =IF(D4="","",MINUTE(D4)) -> 0 | Y4: =IF(D4="","",TIME(HOUR(D4),MINUTE(D4),0)) -> 07:00:00 | Z4: =IF(E4="","",HOUR(E4)) -> 16 | AA4: =IF(E4="","",MINUTE(E4)) -> 0 | AB4: 02:00:00 | AC4: 09:30:00 | AD4: 11:30:00 | AG4: =WEEKDAY(A4,2) -> 6
A5: =A4+1 -> 2001-12-16 | B5: =PROPER(TEXT(A5,"ddd")) -> Sø | C5: =HelligdagsNavn(A5,0,0) ->  | D5: 13:45:00 | E5: 21:30:00 | F5: 00:15:00 | G5: 0.3125 | K5: =ColTime(TIME(18,0,0),TIME(23,0,0),D5,E5) -> 03:30:00 | M5: =ColTime(TIME(23,0,0),TIME(6,0,0),D5,E5) -> 00:00:00 | O5: =IF(WEEKDAY(A5,2)=6,ColTime(TIME(15,0,0),TIME(24,0,0),D5,E5),"") ->  | Q5: =H5+I5+J5 -> 00:00:00 | T5: =CHOOSE(WEEKDAY(A5,2),norm!C$1,norm!C$2,norm!C$3,norm!C$4,norm!C$5,norm!C$6,norm!C$7) -> 00:00:00 | W5: =IF(D5="","",HOUR(D5)) -> 13 | X5: =IF(D5="","",MINUTE(D5)) -> 45 | Y5: =IF(D5="","",TIME(HOUR(D5),MINUTE(D5),0)) -> 13:45:00 | Z5: =IF(E5="","",HOUR(E5)) -> 21 | AA5: =IF(E5="","",MINUTE(E5)) -> 30 | AB5: =IF(E5="","",TIME(HOUR(E5),MINUTE(E5),0)) -> 21:30:00
A6: =A5+1 -> 2001-12-17 | B6: =PROPER(TEXT(A6,"ddd")) -> Ma | D6: 22:00:00 | E6: 05:45:00 | F6: 00:15:00 | G6: 0.3125 | K6: =ColTime(TIME(18,0,0),TIME(23,0,0),D6,E6) -> 01:00:00 | M6: =ColTime(TIME(23,0,0),TIME(6,0,0),D6,E6) -> 06:45:00 | Q6: =H6+I6+J6 -> 00:00:00 | T6: =CHOOSE(WEEKDAY(A6,2),norm!C$1,norm!C$2,norm!C$3,norm!C$4,norm!C$5,norm!C$6,norm!C$7) -> 07:30:00 | W6: =IF(D6="","",HOUR(D6)) -> 22 | X6: =IF(D6="","",MINUTE(D6)) -> 0 | Y6: =IF(D6="","",TIME(HOUR(D6),MINUTE(D6),0)) -> 22:00:00 | Z6: =IF(E6="","",HOUR(E6)) -> 5 | AA6: =IF(E6="","",MINUTE(E6)) -> 45 | AB6: =IF(E6="","",TIME(HOUR(E6),MINUTE(E6),0)) -> 05:45:00
A7: 2001-12-18 | B7: Ti | D7: 05:00:00 | E7: 12:45:00 | F7: 00:15:00 | G7: 0.4895833333 | H7: 02:00:00 | I7: 02:00:00 | J7: 00:15:00 | K7: 00:00:00 | M7: 01:00:00 | Q7: =H7+I7+J7 -> 04:15:00 | T7: =CHOOSE(WEEKDAY(A7,2),norm!C$1,norm!C$2,norm!C$3,norm!C$4,norm!C$5,norm!C$6,norm!C$7) -> 07:30:00 | W7: =IF(D7="","",HOUR(D7)) -> 5 | X7: =IF(D7="","",MINUTE(D7)) -> 0 | Y7: =IF(D7="","",TIME(HOUR(D7),MINUTE(D7),0)) -> 05:00:00 | Z7: =IF(E7="","",HOUR(E7)) -> 12 | AA7: =IF(E7="","",MINUTE(E7)) -> 45 | AB7: =IF(E7="","",TIME(HOUR(E7),MINUTE(E7),0)) -> 12:45:00
A8: 2001-12-19 | B8: On | K8: 00:00:00 | M8: 00:00:00 | Q8: =H8+I8+J8 -> 00:00:00 | T8: =CHOOSE(WEEKDAY(A8,2),norm!C$1,norm!C$2,norm!C$3,norm!C$4,norm!C$5,norm!C$6,norm!C$7) -> 07:30:00 | W8: =IF(D8="","",HOUR(D8)) ->  | X8: =IF(D8="","",MINUTE(D8)) ->  | Y8: =IF(D8="","",TIME(HOUR(D8),MINUTE(D8),0)) ->  | Z8: =IF(E8="","",HOUR(E8)) ->  | AA8: =IF(E8="","",MINUTE(E8)) ->  | AB8: =IF(E8="","",TIME(HOUR(E8),MINUTE(E8),0)) -> 
A9: 2001-12-20 | B9: To | D9: 06:00:00 | E9: 19:00:00 | G9: 0.5416666667 | K9: 01:00:00 | M9: 00:00:00 | Q9: =H9+I9+J9 -> 00:00:00 | T9: =CHOOSE(WEEKDAY(A9,2),norm!C$1,norm!C$2,norm!C$3,norm!C$4,norm!C$5,norm!C$6,norm!C$7) -> 07:30:00 | W9: =IF(D9="","",HOUR(D9)) -> 6 | X9: =IF(D9="","",MINUTE(D9)) -> 0 | Y9: =IF(D9="","",TIME(HOUR(D9),MINUTE(D9),0)) -> 06:00:00 | Z9: =IF(E9="","",HOUR(E9)) -> 19 | AA9: =IF(E9="","",MINUTE(E9)) -> 0 | AB9: =IF(E9="","",TIME(HOUR(E9),MINUTE(E9),0)) -> 19:00:00
A10: 2001-12-21 | B10: Fr | D10: 07:00:00 | E10: 19:00:00 | G10: 0.5 | K10: 01:00:00 | M10: 00:00:00 | P10: =ColTime(TIME(6,0,0),TIME(12,0,0),D10,E10) -> 05:00:00 | Q10: =H10+I10+J10 -> 00:00:00 | T10: =CHOOSE(WEEKDAY(A10,2),norm!C$1,norm!C$2,norm!C$3,norm!C$4,norm!C$5,norm!C$6,norm!C$7) -> 07:00:00 | W10: =IF(D10="","",HOUR(D10)) -> 7 | X10: =IF(D10="","",MINUTE(D10)) -> 0 | Y10: =IF(D10="","",TIME(HOUR(D10),MINUTE(D10),0)) -> 07:00:00 | Z10: =IF(E10="","",HOUR(E10)) -> 19 | AA10: =IF(E10="","",MINUTE(E10)) -> 0 | AB10: =IF(E10="","",TIME(HOUR(E10),MINUTE(E10),0)) -> 19:00:00
A11: =A10+1 -> 2001-12-22 | B11: =PROPER(TEXT(A11,"ddd")) -> Lø | C11: =HelligdagsNavn(A11,0,0) ->  | G11: =IF(D11="","",(E11-D11)+(D11>E11)-F11+H11+I11) ->  | K11: 00:00:00 | M11: 00:00:00 | O11: 00:00:00 | P11: =ColTime(TIME(6,0,0),TIME(12,0,0),D11,E11) -> 00:00:00 | Q11: =H11+I11+J11 -> 00:00:00 | T11: =CHOOSE(WEEKDAY(A11,2),norm!C$1,norm!C$2,norm!C$3,norm!C$4,norm!C$5,norm!C$6,norm!C$7) -> 00:00:00 | W11: =IF(D11="","",HOUR(D11)) ->  | X11: =IF(D11="","",MINUTE(D11)) ->  | Y11: =IF(D11="","",TIME(HOUR(D11),MINUTE(D11),0)) ->  | Z11: =IF(E11="","",HOUR(E11)) ->  | AA11: =IF(E11="","",MINUTE(E11)) ->  | AB11: =IF(E11="","",TIME(HOUR(E11),MINUTE(E11),0)) -> 
A12: =A11+1 -> 2001-12-23 | B12: =PROPER(TEXT(A12,"ddd")) -> Sø | C12: =HelligdagsNavn(A12,0,0) ->  | K12: 00:00:00 | M12: 00:00:00 | P12: 00:00:00 | Q12: 00:00:00 | T12: =CHOOSE(WEEKDAY(A12,2),norm!C$1,norm!C$2,norm!C$3,norm!C$4,norm!C$5,norm!C$6,norm!C$7) -> 00:00:00 | W12: =IF(D12="","",HOUR(D12)) ->  | X12: =IF(D12="","",MINUTE(D12)) ->  | Y12: =IF(D12="","",TIME(HOUR(D12),MINUTE(D12),0)) ->  | Z12: =IF(E12="","",HOUR(E12)) ->  | AA12: =IF(E12="","",MINUTE(E12)) ->  | AB12: =IF(E12="","",TIME(HOUR(E12),MINUTE(E12),0)) -> 
A13: =A12+1 -> 2001-12-24 | B13: =PROPER(TEXT(A13,"ddd")) -> Ma | C13: Julaftensdag | G13: =IF(D13="","",(E13-D13)+(D13>E13)-F13+H13+I13) ->  | K13: 00:00:00 | M13: 00:00:00 | P13: 00:00:00 | Q13: 00:00:00 | T13: =CHOOSE(WEEKDAY(A13,2),norm!C$1,norm!C$2,norm!C$3,norm!C$4,norm!C$5,norm!C$6,norm!C$7) -> 07:30:00 | W13: =IF(D13="","",HOUR(D13)) ->  | X13: =IF(D13="","",MINUTE(D13)) ->  | Y13: =IF(D13="","",TIME(HOUR(D13),MINUTE(D13),0)) ->  | Z13: =IF(E13="","",HOUR(E13)) ->  | AA13: =IF(E13="","",MINUTE(E13)) ->  | AB13: =IF(E13="","",TIME(HOUR(E13),MINUTE(E13),0)) -> 
A14: 2001-12-25 | B14: Ti | C14: 1. Juledag | K14: 00:00:00 | M14: 00:00:00 | P14: 00:00:00 | Q14: 00:00:00 | T14: =CHOOSE(WEEKDAY(A14,2),norm!C$1,norm!C$2,norm!C$3,norm!C$4,norm!C$5,norm!C$6,norm!C$7) -> 07:30:00 | W14: =IF(D14="","",HOUR(D14)) ->  | X14: =IF(D14="","",MINUTE(D14)) ->  | Y14: =IF(D14="","",TIME(HOUR(D14),MINUTE(D14),0)) ->  | Z14: =IF(E14="","",HOUR(E14)) ->  | AA14: =IF(E14="","",MINUTE(E14)) ->  | AB14: =IF(E14="","",TIME(HOUR(E14),MINUTE(E14),0)) -> 
A15: 2001-12-26 | B15: On | C15: 2. Juledag | K15: 00:00:00 | M15: 00:00:00 | P15: 00:00:00 | Q15: 00:00:00 | T15: =CHOOSE(WEEKDAY(A15,2),norm!C$1,norm!C$2,norm!C$3,norm!C$4,norm!C$5,norm!C$6,norm!C$7) -> 07:30:00 | W15: =IF(D15="","",HOUR(D15)) ->  | X15: =IF(D15="","",MINUTE(D15)) ->  | Y15: =IF(D15="","",TIME(HOUR(D15),MINUTE(D15),0)) ->  | Z15: =IF(E15="","",HOUR(E15)) ->  | AA15: =IF(E15="","",MINUTE(E15)) ->  | AB15: =IF(E15="","",TIME(HOUR(E15),MINUTE(E15),0)) -> 
A16: 2001-12-27 | B16: To | K16: 00:00:00 | M16: 00:00:00 | P16: 00:00:00 | Q16: 00:00:00 | T16: =CHOOSE(WEEKDAY(A16,2),norm!C$1,norm!C$2,norm!C$3,norm!C$4,norm!C$5,norm!C$6,norm!C$7) -> 07:30:00 | W16: =IF(D16="","",HOUR(D16)) ->  | X16: =IF(D16="","",MINUTE(D16)) ->  | Y16: =IF(D16="","",TIME(HOUR(D16),MINUTE(D16),0)) ->  | Z16: =IF(E16="","",HOUR(E16)) ->  | AA16: =IF(E16="","",MINUTE(E16)) ->  | AB16: =IF(E16="","",TIME(HOUR(E16),MINUTE(E16),0)) -> 
A17: 2001-12-28 | B17: Fr | K17: 00:00:00 | M17: 00:00:00 | P17: 00:00:00 | Q17: 00:00:00 | T17: =CHOOSE(WEEKDAY(A17,2),norm!C$1,norm!C$2,norm!C$3,norm!C$4,norm!C$5,norm!C$6,norm!C$7) -> 07:00:00 | W17: =IF(D17="","",HOUR(D17)) ->  | X17: =IF(D17="","",MINUTE(D17)) ->  | Y17: =IF(D17="","",TIME(HOUR(D17),MINUTE(D17),0)) ->  | Z17: =IF(E17="","",HOUR(E17)) ->  | AA17: =IF(E17="","",MINUTE(E17)) ->  | AB17: =IF(E17="","",TIME(HOUR(E17),MINUTE(E17),0)) -> 
A18: =A17+1 -> 2001-12-29 | B18: =PROPER(TEXT(A18,"ddd")) -> Lø | C18: =HelligdagsNavn(A18,0,0) ->  | K18: 00:00:00 | M18: 00:00:00 | O18: 00:00:00 | P18: 00:00:00 | Q18: 00:00:00 | T18: =CHOOSE(WEEKDAY(A18,2),norm!C$1,norm!C$2,norm!C$3,norm!C$4,norm!C$5,norm!C$6,norm!C$7) -> 00:00:00 | W18: =IF(D18="","",HOUR(D18)) ->  | X18: =IF(D18="","",MINUTE(D18)) ->  | Y18: =IF(D18="","",TIME(HOUR(D18),MINUTE(D18),0)) ->  | Z18: =IF(E18="","",HOUR(E18)) ->  | AA18: =IF(E18="","",MINUTE(E18)) ->  | AB18: =IF(E18="","",TIME(HOUR(E18),MINUTE(E18),0)) -> 
A19: =A18+1 -> 2001-12-30 | B19: =PROPER(TEXT(A19,"ddd")) -> Sø | C19: =HelligdagsNavn(A19,0,0) ->  | K19: 00:00:00 | M19: 00:00:00 | P19: 00:00:00 | Q19: 00:00:00 | T19: =CHOOSE(WEEKDAY(A19,2),norm!C$1,norm!C$2,norm!C$3,norm!C$4,norm!C$5,norm!C$6,norm!C$7) -> 00:00:00 | W19: =IF(D19="","",HOUR(D19)) ->  | X19: =IF(D19="","",MINUTE(D19)) ->  | Y19: =IF(D19="","",TIME(HOUR(D19),MINUTE(D19),0)) ->  | Z19: =IF(E19="","",HOUR(E19)) ->  | AA19: =IF(E19="","",MINUTE(E19)) ->  | AB19: =IF(E19="","",TIME(HOUR(E19),MINUTE(E19),0)) -> 
A20: =A19+1 -> 2001-12-31 | B20: =PROPER(TEXT(A20,"ddd")) -> Ma | C20: Nytårsaftensdag | K20: 00:00:00 | M20: 00:00:00 | P20: 00:00:00 | Q20: 00:00:00 | T20: =CHOOSE(WEEKDAY(A20,2),norm!C$1,norm!C$2,norm!C$3,norm!C$4,norm!C$5,norm!C$6,norm!C$7) -> 07:30:00 | W20: =IF(D20="","",HOUR(D20)) ->  | X20: =IF(D20="","",MINUTE(D20)) ->  | Y20: =IF(D20="","",TIME(HOUR(D20),MINUTE(D20),0)) ->  | Z20: =IF(E20="","",HOUR(E20)) ->  | AA20: =IF(E20="","",MINUTE(E20)) ->  | AB20: =IF(E20="","",TIME(HOUR(E20),MINUTE(E20),0)) -> 
A21: 2002-01-01 | B21: Ti | C21: Nytårsdag | K21: =ColTime(TIME(18,0,0),TIME(23,0,0),D21,E21) -> 00:00:00 | M21: =ColTime(TIME(23,0,0),TIME(6,0,0),D21,E21) -> 00:00:00 | P21: 00:00:00 | Q21: 00:00:00 | T21: =CHOOSE(WEEKDAY(A21,2),norm!C$1,norm!C$2,norm!C$3,norm!C$4,norm!C$5,norm!C$6,norm!C$7) -> 07:30:00 | W21: =IF(D21="","",HOUR(D21)) ->  | X21: =IF(D21="","",MINUTE(D21)) ->  | Y21: =IF(D21="","",TIME(HOUR(D21),MINUTE(D21),0)) ->  | Z21: =IF(E21="","",HOUR(E21)) ->  | AA21: =IF(E21="","",MINUTE(E21)) ->  | AB21: =IF(E21="","",TIME(HOUR(E21),MINUTE(E21),0)) -> 
A22: 2002-01-02 | B22: On | K22: 00:00:00 | M22: 00:00:00 | P22: 00:00:00 | Q22: 00:00:00 | T22: =CHOOSE(WEEKDAY(A22,2),norm!C$1,norm!C$2,norm!C$3,norm!C$4,norm!C$5,norm!C$6,norm!C$7) -> 07:30:00 | W22: =IF(D22="","",HOUR(D22)) ->  | X22: =IF(D22="","",MINUTE(D22)) ->  | Y22: =IF(D22="","",TIME(HOUR(D22),MINUTE(D22),0)) ->  | Z22: =IF(E22="","",HOUR(E22)) ->  | AA22: =IF(E22="","",MINUTE(E22)) ->  | AB22: =IF(E22="","",TIME(HOUR(E22),MINUTE(E22),0)) -> 
A23: 2002-01-03 | B23: To | K23: 00:00:00 | M23: 00:00:00 | P23: 00:00:00 | Q23: 00:00:00 | T23: =CHOOSE(WEEKDAY(A23,2),norm!C$1,norm!C$2,norm!C$3,norm!C$4,norm!C$5,norm!C$6,norm!C$7) -> 07:30:00 | W23: =IF(D23="","",HOUR(D23)) ->  | X23: =IF(D23="","",MINUTE(D23)) ->  | Y23: =IF(D23="","",TIME(HOUR(D23),MINUTE(D23),0)) ->  | Z23: =IF(E23="","",HOUR(E23)) ->  | AA23: =IF(E23="","",MINUTE(E23)) ->  | AB23: =IF(E23="","",TIME(HOUR(E23),MINUTE(E23),0)) -> 
A24: 2002-01-04 | B24: Fr | K24: 00:00:00 | M24: 00:00:00 | P24: 00:00:00 | Q24: 00:00:00 | T24: =CHOOSE(WEEKDAY(A24,2),norm!C$1,norm!C$2,norm!C$3,norm!C$4,norm!C$5,norm!C$6,norm!C$7) -> 07:00:00 | W24: =IF(D24="","",HOUR(D24)) ->  | X24: =IF(D24="","",MINUTE(D24)) ->  | Y24: =IF(D24="","",TIME(HOUR(D24),MINUTE(D24),0)) ->  | Z24: =IF(E24="","",HOUR(E24)) ->  | AA24: =IF(E24="","",MINUTE(E24)) ->  | AB24: =IF(E24="","",TIME(HOUR(E24),MINUTE(E24),0)) -> 
A25: =A24+1 -> 2002-01-05 | B25: =PROPER(TEXT(A25,"ddd")) -> Lø | C25: =HelligdagsNavn(A25,0,0) ->  | K25: 00:00:00 | M25: 00:00:00 | O25: 00:00:00 | P25: 00:00:00 | Q25: 00:00:00 | T25: =CHOOSE(WEEKDAY(A25,2),norm!C$1,norm!C$2,norm!C$3,norm!C$4,norm!C$5,norm!C$6,norm!C$7) -> 00:00:00 | W25: =IF(D25="","",HOUR(D25)) ->  | X25: =IF(D25="","",MINUTE(D25)) ->  | Y25: =IF(D25="","",TIME(HOUR(D25),MINUTE(D25),0)) ->  | Z25: =IF(E25="","",HOUR(E25)) ->  | AA25: =IF(E25="","",MINUTE(E25)) ->  | AB25: =IF(E25="","",TIME(HOUR(E25),MINUTE(E25),0)) -> 
A26: =A25+1 -> 2002-01-06 | B26: =PROPER(TEXT(A26,"ddd")) -> Sø | C26: =HelligdagsNavn(A26,0,0) ->  | K26: 00:00:00 | M26: 00:00:00 | P26: 00:00:00 | Q26: 00:00:00 | T26: =CHOOSE(WEEKDAY(A26,2),norm!C$1,norm!C$2,norm!C$3,norm!C$4,norm!C$5,norm!C$6,norm!C$7) -> 00:00:00 | W26: =IF(D26="","",HOUR(D26)) ->  | X26: =IF(D26="","",MINUTE(D26)) ->  | Y26: =IF(D26="","",TIME(HOUR(D26),MINUTE(D26),0)) ->  | Z26: =IF(E26="","",HOUR(E26)) ->  | AA26: =IF(E26="","",MINUTE(E26)) ->  | AB26: =IF(E26="","",TIME(HOUR(E26),MINUTE(E26),0)) -> 
A27: =A26+1 -> 2002-01-07 | B27: =PROPER(TEXT(A27,"ddd")) -> Ma | K27: 00:00:00 | M27: 00:00:00 | P27: 00:00:00 | Q27: 00:00:00 | T27: =CHOOSE(WEEKDAY(A27,2),norm!C$1,norm!C$2,norm!C$3,norm!C$4,norm!C$5,norm!C$6,norm!C$7) -> 07:30:00 | W27: =IF(D27="","",HOUR(D27)) ->  | X27: =IF(D27="","",MINUTE(D27)) ->  | Y27: =IF(D27="","",TIME(HOUR(D27),MINUTE(D27),0)) ->  | Z27: =IF(E27="","",HOUR(E27)) ->  | AA27: =IF(E27="","",MINUTE(E27)) ->  | AB27: =IF(E27="","",TIME(HOUR(E27),MINUTE(E27),0)) -> 
A28: 2002-01-08 | B28: Ti | K28: 00:00:00 | M28: 00:00:00 | P28: 00:00:00 | Q28: 00:00:00 | T28: =CHOOSE(WEEKDAY(A28,2),norm!C$1,norm!C$2,norm!C$3,norm!C$4,norm!C$5,norm!C$6,norm!C$7) -> 07:30:00 | W28: =IF(D28="","",HOUR(D28)) ->  | X28: =IF(D28="","",MINUTE(D28)) ->  | Y28: =IF(D28="","",TIME(HOUR(D28),MINUTE(D28),0)) ->  | Z28: =IF(E28="","",HOUR(E28)) ->  | AA28: =IF(E28="","",MINUTE(E28)) ->  | AB28: =IF(E28="","",TIME(HOUR(E28),MINUTE(E28),0)) -> 
A29: 2002-01-09 | B29: On | K29: 00:00:00 | M29: 00:00:00 | P29: 00:00:00 | Q29: 00:00:00
A30: 2002-01-10 | B30: To | K30: 00:00:00 | M30: 00:00:00 | P30: 00:00:00 | Q30: 00:00:00
A31: 2002-01-11 | B31: Fr | K31: 00:00:00 | M31: 00:00:00 | P31: 00:00:00 | Q31: 00:00:00
A32: 2002-01-12 | B32: Lø | K32: 00:00:00 | M32: 00:00:00 | O32: 00:00:00 | P32: 00:00:00 | Q32: 00:00:00
A33: 2002-01-13 | B33: Sø | K33: 00:00:00 | M33: 00:00:00 | P33: 00:00:00 | Q33: 00:00:00
A34: 2002-01-14 | B34: Ma | K34: 00:00:00 | M34: 00:00:00 | P34: 00:00:00 | Q34: 00:00:00 | T34: =CHOOSE(WEEKDAY(A34,2),norm!C$1,norm!C$2,norm!C$3,norm!C$4,norm!C$5,norm!C$6,norm!C$7) -> 07:30:00 | W34: =IF(D34="","",HOUR(D34)) ->  | X34: =IF(D34="","",MINUTE(D34)) ->  | Y34: =IF(D34="","",TIME(HOUR(D34),MINUTE(D34),0)) ->  | Z34: =IF(E34="","",HOUR(E34)) ->  | AA34: =IF(E34="","",MINUTE(E34)) ->  | AB34: =IF(E34="","",TIME(HOUR(E34),MINUTE(E34),0)) -> 
A35: 2002-01-15 | B35: Ti | K35: 00:00:00 | M35: 00:00:00 | P35: 00:00:00 | Q35: 00:00:00 | T35: =CHOOSE(WEEKDAY(A35,2),norm!C$1,norm!C$2,norm!C$3,norm!C$4,norm!C$5,norm!C$6,norm!C$7) -> 07:30:00 | W35: =IF(D35="","",HOUR(D35)) ->  | X35: =IF(D35="","",MINUTE(D35)) ->  | Y35: =IF(D35="","",TIME(HOUR(D35),MINUTE(D35),0)) ->  | Z35: =IF(E35="","",HOUR(E35)) ->  | AA35: =IF(E35="","",MINUTE(E35)) ->  | AB35: =IF(E35="","",TIME(HOUR(E35),MINUTE(E35),0)) -> 
A36: 2002-01-16 | B36: On | K36: 00:00:00 | M36: 00:00:00 | P36: 00:00:00 | Q36: 00:00:00 | T36: =CHOOSE(WEEKDAY(A36,2),norm!C$1,norm!C$2,norm!C$3,norm!C$4,norm!C$5,norm!C$6,norm!C$7) -> 07:30:00 | W36: =IF(D36="","",HOUR(D36)) ->  | X36: =IF(D36="","",MINUTE(D36)) ->  | Y36: =IF(D36="","",TIME(HOUR(D36),MINUTE(D36),0)) ->  | Z36: =IF(E36="","",HOUR(E36)) ->  | AA36: =IF(E36="","",MINUTE(E36)) ->  | AB36: =IF(E36="","",TIME(HOUR(E36),MINUTE(E36),0)) -> 
A37: Total timer | G37: =IF(SUM(G9:G36)<>"0",SUM(G4:G36),"") -> 2.635416667 | H37: =IF(SUM(H4:H36)<>"0",SUM(H4:H36),"") -> 0.1666666667 | I37: =IF(SUM(I4:I36)<>"0",SUM(I4:I36),"") -> 0.1145833333 | J37: =IF(SUM(J4:J36)<>"0",SUM(J4:J36),"") -> 0.01041666667 | K37: =IF(SUM(K4:K36)<>"0",SUM(K4:K36),"") -> 0.2708333333 | M37: =SUM(M4:N36) -> 07:45:00 | O37: =IF(SUM(O4:O36)<>"0",SUM(O4:O36),"") -> 0.04166666667 | P37: =IF(SUM(P4:P36)<>"0",SUM(P4:P36),"") -> 05:00:00 | Q37: =SUM(Q4:Q36) -> 0.2916666667 | R37: =SUM(R4:R36) -> 0
A38: Timer 1/100 | G38: =IF(G37<>"",ROUND(G37*24,2),"") -> 63.25 | H38: =IF(H37<>"",ROUND(H37*24,2),"") -> 4 | I38: 2.75 | J38: 0.25 | K38: =IF(K37<>"",ROUND(K37*24,2),"") -> 6.5 | M38: =IF(M37<>"",ROUND(M37*24,2),"") -> 7.75 | O38: =IF(O37<>"",ROUND(O37*24,2),"") -> 1 | P38: 5 | Q38: 7 | R38: 0
A39: Satser | G39: =Satser!B7 -> 107.35 | H39: =Satser!B9 -> 36.35 | I39: =Satser!B12 -> 58.1 | J39: =Satser!B15 -> 108.65 | K39: =Satser!B17 -> 25.6 | M39: =Satser!B19 -> 46.95 | P39: 67
G40: =IF(G37<>"",G38*G39,"") -> 6789.8875 | H40: =IF(H37<>"",H38*H39,"") -> 145.4 | I40: 159.775 | J40: 27.1625 | K40: =IF(K37<>"",K38*K39,"") -> 166.4 | M40: =IF(M37<>"",M38*M38,"") -> 60.0625
A42: Lønart
A43: 3025 | G43: =G37 -> 2.635416667
A44: 3425 | G44: =H37 -> 0.1666666667
A45: 3428 | G45: =J37 -> 0.01041666667
A46: Timer | G46: =SUM(G43:G45) -> 2.8125 | H46: =IF(G46<>"",ROUND(G46*24,2),"") -> 67.5
H47: =G39*H46 -> 7246.125

Sheet Tomt
A1: Løn | B1: 1 juni 2010 - 30 juni 2010 | Q1: Time beregning:
A2: Lønart | G2: 3025 | H2: 3425 | I2: 3426 | J2: 3600 | K2: 3602 | L2: 3605 | M2: 3610 | N2: 9091 | O2: 9092 | Q2: Betalt pause ved vagt over 5 timer | U2: 00:25:00 | V2: minutter | W2: 00:00:00 | X2: 06:00:00 | Y2: 18:00:00 | Z2: 14:00:00
A3: Dato | B3: Dag | D3: Vagt | E3: Start | F3: Slut | G3: Time SID | H3: Overtid 1-3 time | I3: Overtid 4 - time | J3: Forskudttid alle dage | K3: Nattillæg 00-06 | L3: Weekend tillæg | M3: Delt tjenste
A4: 2010-04-01 | B4: =PROPER(TEXT(A4,"ddd")) -> To | C4: =HelligdagsNavn(A4,0,0) -> Skærtorsdag | E4: =IF($D4="","",IF(VLOOKUP($D4,#REF!,2)=0,"",VLOOKUP($D4,#REF!,2))) ->  | F4: =IF($D4="","",IF(VLOOKUP($D4,#REF!,3)="","",VLOOKUP($D4,#REF!,3))) ->  | G4: =IF($D4="","",VLOOKUP($D4,#REF!,13)) ->  | J4: =IF(E4<>"",IF(WEEKDAY(A4,2)<>6,IF(E4>F4,(F4-MAX(E4,(18/24))+(E4>F4))-F4,IF(F4>Y$2,(F4-MAX(E4,(18/24))),"")),IF(E4>F4,(F4-MAX(E4,(14/24))+(E4>F4))-F4,IF(F4>Z$2,(F4-MAX(E4,(14/24))),""))),"") ->  | K4: =IF(G4<>"",IF(S4<X$2,(X$2-S4),IF(V4<X$2,(V4-W$2),"")),"") ->  | L4: =IF(G4<>0,IF(WEEKDAY(A4,2)=7,G4,""),"") ->  | M4: =IF($D4="","",IF(VLOOKUP($D4,#REF!,15)="","",VLOOKUP($D4,#REF!,15))) ->  | N4: =IF(SUM(H4:I4)=0,"",SUM(H4:I4)) ->  | Q4: =IF(E4="","",HOUR(E4)) ->  | R4: =IF(E4="","",MINUTE(E4)) ->  | S4: =IF(E4="","",TIME(HOUR(E4),MINUTE(E4),0)) ->  | T4: =IF(F4="","",HOUR(F4)) ->  | U4: =IF(F4="","",MINUTE(F4)) ->  | V4: =TIME(HOUR(F4),MINUTE(F4),0) -> 
A5: 2010-04-02 | B5: =PROPER(TEXT(A5,"ddd")) -> Fr | C5: =HelligdagsNavn(A5,0,0) -> Langfredag | E5: =IF($D5="","",IF(VLOOKUP($D5,#REF!,2)=0,"",VLOOKUP($D5,#REF!,2))) ->  | F5: =IF($D5="","",IF(VLOOKUP($D5,#REF!,3)="","",VLOOKUP($D5,#REF!,3))) ->  | G5: =IF($D5="","",VLOOKUP($D5,#REF!,13)) ->  | J5: =IF(E5<>"",IF(WEEKDAY(A5,2)<>6,IF(E5>F5,(F5-MAX(E5,(18/24))+(E5>F5))-F5,IF(F5>Y$2,(F5-MAX(E5,(18/24))),"")),IF(E5>F5,(F5-MAX(E5,(14/24))+(E5>F5))-F5,IF(F5>Z$2,(F5-MAX(E5,(14/24))),""))),"") ->  | L5: =IF(G5<>0,IF(WEEKDAY(A5,2)=7,G5,""),"") ->  | M5: =IF($D5="","",IF(VLOOKUP($D5,#REF!,15)="","",VLOOKUP($D5,#REF!,15))) ->  | N5: =IF(SUM(H5:I5)=0,"",SUM(H5:I5)) ->  | V5: =TIME(HOUR(F5),MINUTE(F5),0) -> 
A6: 2010-04-03 | B6: =PROPER(TEXT(A6,"ddd")) -> Lø | E6: =IF($D6="","",IF(VLOOKUP($D6,#REF!,2)=0,"",VLOOKUP($D6,#REF!,2))) ->  | F6: =IF($D6="","",IF(VLOOKUP($D6,#REF!,3)="","",VLOOKUP($D6,#REF!,3))) ->  | G6: =IF($D6="","",VLOOKUP($D6,#REF!,13)) ->  | J6: =IF(E6<>"",IF(WEEKDAY(A6,2)<>6,IF(E6>F6,(F6-MAX(E6,(18/24))+(E6>F6))-F6,IF(F6>Y$2,(F6-MAX(E6,(18/24))),"")),IF(E6>F6,(F6-MAX(E6,(14/24))+(E6>F6))-F6,IF(F6>Z$2,(F6-MAX(E6,(14/24))),""))),"") ->  | M6: =IF($D6="","",IF(VLOOKUP($D6,#REF!,15)="","",VLOOKUP($D6,#REF!,15))) ->  | V6: =TIME(HOUR(F6),MINUTE(F6),0) -> 
A7: 2010-04-04 | B7: Sø | C7: Påskedag | E7: =IF($D7="","",IF(VLOOKUP($D7,#REF!,2)=0,"",VLOOKUP($D7,#REF!,2))) ->  | F7: =IF($D7="","",IF(VLOOKUP($D7,#REF!,3)="","",VLOOKUP($D7,#REF!,3))) ->  | G7: =IF($D7="","",VLOOKUP($D7,#REF!,13)) ->  | M7: =IF($D7="","",IF(VLOOKUP($D7,#REF!,15)="","",VLOOKUP($D7,#REF!,15))) ->  | O7: =IF($D7="","",IF(VLOOKUP($D7,#REF!,16)="","",VLOOKUP($D7,#REF!,16))) ->  | V7: =TIME(HOUR(F7),MINUTE(F7),0) -> 
A8: 2010-04-05 | B8: Ma | C8: 2. Påskedag | E8: =IF($D8="","",IF(VLOOKUP($D8,#REF!,2)=0,"",VLOOKUP($D8,#REF!,2))) ->  | F8: =IF($D8="","",IF(VLOOKUP($D8,#REF!,3)="","",VLOOKUP($D8,#REF!,3))) ->  | G8: =IF($D8="","",VLOOKUP($D8,#REF!,13)) ->  | M8: =IF($D8="","",IF(VLOOKUP($D8,#REF!,15)="","",VLOOKUP($D8,#REF!,15))) ->  | O8: =IF($D8="","",IF(VLOOKUP($D8,#REF!,16)="","",VLOOKUP($D8,#REF!,16))) ->  | V8: =TIME(HOUR(F8),MINUTE(F8),0) -> 
A9: 2010-04-06 | B9: Ti | E9: =IF($D9="","",IF(VLOOKUP($D9,#REF!,2)=0,"",VLOOKUP($D9,#REF!,2))) ->  | F9: =IF($D9="","",IF(VLOOKUP($D9,#REF!,3)="","",VLOOKUP($D9,#REF!,3))) ->  | G9: =IF($D9="","",VLOOKUP($D9,#REF!,13)) ->  | L9: =IF(G9<>0,IF(WEEKDAY(A9,2)=7,G9,""),"") ->  | M9: =IF($D9="","",IF(VLOOKUP($D9,#REF!,15)="","",VLOOKUP($D9,#REF!,15))) ->  | O9: =IF($D9="","",IF(VLOOKUP($D9,#REF!,16)="","",VLOOKUP($D9,#REF!,16))) ->  | V9: =IF(F9="","",TIME(HOUR(F9),MINUTE(F9),0)) -> 
A10: 2010-04-07 | B10: On | E10: =IF($D10="","",IF(VLOOKUP($D10,#REF!,2)=0,"",VLOOKUP($D10,#REF!,2))) ->  | F10: =IF($D10="","",IF(VLOOKUP($D10,#REF!,3)="","",VLOOKUP($D10,#REF!,3))) ->  | G10: =IF($D10="","",IF(VLOOKUP($D10,#REF!,13)="","",VLOOKUP($D10,#REF!,13))) ->  | L10: =IF(G10<>0,IF(WEEKDAY(A10,2)=7,G10,""),"") ->  | M10: =IF($D10="","",IF(VLOOKUP($D10,#REF!,15)="","",VLOOKUP($D10,#REF!,15))) ->  | O10: =IF($D10="","",IF(VLOOKUP($D10,#REF!,16)="","",VLOOKUP($D10,#REF!,16))) -> 
A11: 2010-04-08 | B11: To | E11: =IF($D11="","",IF(VLOOKUP($D11,#REF!,2)=0,"",VLOOKUP($D11,#REF!,2))) ->  | F11: =IF($D11="","",IF(VLOOKUP($D11,#REF!,3)="","",VLOOKUP($D11,#REF!,3))) ->  | G11: =IF($D11="","",IF(VLOOKUP($D11,#REF!,13)="","",VLOOKUP($D11,#REF!,13))) ->  | L11: =IF(G11<>0,IF(WEEKDAY(A11,2)=7,G11,""),"") ->  | M11: =IF($D11="","",IF(VLOOKUP($D11,#REF!,15)="","",VLOOKUP($D11,#REF!,15))) ->  | O11: =IF($D11="","",IF(VLOOKUP($D11,#REF!,16)="","",VLOOKUP($D11,#REF!,16))) -> 
A12: 2010-04-09 | B12: Fr | E12: =IF($D12="","",IF(VLOOKUP($D12,#REF!,2)=0,"",VLOOKUP($D12,#REF!,2))) ->  | F12: =IF($D12="","",IF(VLOOKUP($D12,#REF!,3)="","",VLOOKUP($D12,#REF!,3))) ->  | G12: =IF($D12="","",IF(VLOOKUP($D12,#REF!,13)="","",VLOOKUP($D12,#REF!,13))) ->  | M12: =IF($D12="","",IF(VLOOKUP($D12,#REF!,15)="","",VLOOKUP($D12,#REF!,15))) ->  | O12: =IF($D12="","",IF(VLOOKUP($D12,#REF!,16)="","",VLOOKUP($D12,#REF!,16))) -> 
A13: 2010-04-10 | B13: Lø | E13: =IF($D13="","",IF(VLOOKUP($D13,#REF!,2)=0,"",VLOOKUP($D13,#REF!,2))) ->  | F13: =IF($D13="","",IF(VLOOKUP($D13,#REF!,3)="","",VLOOKUP($D13,#REF!,3))) ->  | G13: =IF($D13="","",IF(VLOOKUP($D13,#REF!,13)="","",VLOOKUP($D13,#REF!,13))) ->  | M13: =IF($D13="","",IF(VLOOKUP($D13,#REF!,15)="","",VLOOKUP($D13,#REF!,15))) ->  | O13: =IF($D13="","",IF(VLOOKUP($D13,#REF!,16)="","",VLOOKUP($D13,#REF!,16))) -> 
A14: 2010-04-11 | B14: Sø | E14: =IF($D14="","",IF(VLOOKUP($D14,#REF!,2)=0,"",VLOOKUP($D14,#REF!,2))) ->  | F14: =IF($D14="","",IF(VLOOKUP($D14,#REF!,3)="","",VLOOKUP($D14,#REF!,3))) ->  | G14: =IF($D14="","",IF(VLOOKUP($D14,#REF!,13)="","",VLOOKUP($D14,#REF!,13))) ->  | M14: =IF($D14="","",IF(VLOOKUP($D14,#REF!,15)="","",VLOOKUP($D14,#REF!,15))) ->  | O14: =IF($D14="","",IF(VLOOKUP($D14,#REF!,16)="","",VLOOKUP($D14,#REF!,16))) -> 
A15: 2010-04-12 | B15: Ma | E15: =IF($D15="","",IF(VLOOKUP($D15,#REF!,2)=0,"",VLOOKUP($D15,#REF!,2))) ->  | F15: =IF($D15="","",IF(VLOOKUP($D15,#REF!,3)="","",VLOOKUP($D15,#REF!,3))) ->  | G15: =IF($D15="","",IF(VLOOKUP($D15,#REF!,13)="","",VLOOKUP($D15,#REF!,13))) ->  | M15: =IF($D15="","",IF(VLOOKUP($D15,#REF!,15)="","",VLOOKUP($D15,#REF!,15))) ->  | O15: =IF($D15="","",IF(VLOOKUP($D15,#REF!,16)="","",VLOOKUP($D15,#REF!,16))) -> 
A16: 2010-04-13 | B16: Ti | E16: =IF($D16="","",IF(VLOOKUP($D16,#REF!,2)=0,"",VLOOKUP($D16,#REF!,2))) ->  | F16: =IF($D16="","",IF(VLOOKUP($D16,#REF!,3)="","",VLOOKUP($D16,#REF!,3))) ->  | G16: =IF($D16="","",IF(VLOOKUP($D16,#REF!,13)="","",VLOOKUP($D16,#REF!,13))) ->  | M16: =IF($D16="","",IF(VLOOKUP($D16,#REF!,15)="","",VLOOKUP($D16,#REF!,15))) ->  | O16: =IF($D16="","",IF(VLOOKUP($D16,#REF!,16)="","",VLOOKUP($D16,#REF!,16))) -> 
A17: 2010-04-14 | B17: On | E17: =IF($D17="","",IF(VLOOKUP($D17,#REF!,2)=0,"",VLOOKUP($D17,#REF!,2))) ->  | F17: =IF($D17="","",IF(VLOOKUP($D17,#REF!,3)="","",VLOOKUP($D17,#REF!,3))) ->  | G17: =IF($D17="","",IF(VLOOKUP($D17,#REF!,13)="","",VLOOKUP($D17,#REF!,13))) ->  | M17: =IF($D17="","",IF(VLOOKUP($D17,#REF!,15)="","",VLOOKUP($D17,#REF!,15))) ->  | O17: =IF($D17="","",IF(VLOOKUP($D17,#REF!,16)="","",VLOOKUP($D17,#REF!,16))) -> 
A18: 2010-04-15 | B18: To | E18: =IF($D18="","",IF(VLOOKUP($D18,#REF!,2)=0,"",VLOOKUP($D18,#REF!,2))) ->  | F18: =IF($D18="","",IF(VLOOKUP($D18,#REF!,3)="","",VLOOKUP($D18,#REF!,3))) ->  | G18: =IF($D18="","",IF(VLOOKUP($D18,#REF!,13)="","",VLOOKUP($D18,#REF!,13))) ->  | M18: =IF($D18="","",IF(VLOOKUP($D18,#REF!,15)="","",VLOOKUP($D18,#REF!,15))) ->  | O18: =IF($D18="","",IF(VLOOKUP($D18,#REF!,16)="","",VLOOKUP($D18,#REF!,16))) -> 
A19: 2010-04-16 | B19: Fr | E19: =IF($D19="","",IF(VLOOKUP($D19,#REF!,2)=0,"",VLOOKUP($D19,#REF!,2))) ->  | F19: =IF($D19="","",IF(VLOOKUP($D19,#REF!,3)="","",VLOOKUP($D19,#REF!,3))) ->  | G19: =IF($D19="","",IF(VLOOKUP($D19,#REF!,13)="","",VLOOKUP($D19,#REF!,13))) ->  | M19: =IF($D19="","",IF(VLOOKUP($D19,#REF!,15)="","",VLOOKUP($D19,#REF!,15))) ->  | O19: =IF($D19="","",IF(VLOOKUP($D19,#REF!,16)="","",VLOOKUP($D19,#REF!,16))) -> 
A20: 2010-04-17 | B20: Lø | E20: =IF($D20="","",IF(VLOOKUP($D20,#REF!,2)=0,"",VLOOKUP($D20,#REF!,2))) ->  | F20: =IF($D20="","",IF(VLOOKUP($D20,#REF!,3)="","",VLOOKUP($D20,#REF!,3))) ->  | G20: =IF($D20="","",IF(VLOOKUP($D20,#REF!,13)="","",VLOOKUP($D20,#REF!,13))) ->  | M20: =IF($D20="","",IF(VLOOKUP($D20,#REF!,15)="","",VLOOKUP($D20,#REF!,15))) ->  | O20: =IF($D20="","",IF(VLOOKUP($D20,#REF!,16)="","",VLOOKUP($D20,#REF!,16))) -> 
A21: 2010-04-18 | B21: Sø | E21: =IF($D21="","",IF(VLOOKUP($D21,#REF!,2)=0,"",VLOOKUP($D21,#REF!,2))) ->  | F21: =IF($D21="","",IF(VLOOKUP($D21,#REF!,3)="","",VLOOKUP($D21,#REF!,3))) ->  | G21: =IF($D21="","",IF(VLOOKUP($D21,#REF!,13)="","",VLOOKUP($D21,#REF!,13))) ->  | M21: =IF($D21="","",IF(VLOOKUP($D21,#REF!,15)="","",VLOOKUP($D21,#REF!,15))) ->  | O21: =IF($D21="","",IF(VLOOKUP($D21,#REF!,16)="","",VLOOKUP($D21,#REF!,16))) -> 
A22: 2010-04-19 | B22: Ma | E22: =IF($D22="","",IF(VLOOKUP($D22,#REF!,2)=0,"",VLOOKUP($D22,#REF!,2))) ->  | F22: =IF($D22="","",IF(VLOOKUP($D22,#REF!,3)="","",VLOOKUP($D22,#REF!,3))) ->  | G22: =IF($D22="","",IF(VLOOKUP($D22,#REF!,13)="","",VLOOKUP($D22,#REF!,13))) ->  | M22: =IF($D22="","",IF(VLOOKUP($D22,#REF!,15)="","",VLOOKUP($D22,#REF!,15))) ->  | O22: =IF($D22="","",IF(VLOOKUP($D22,#REF!,16)="","",VLOOKUP($D22,#REF!,16))) -> 
A23: 2010-04-20 | B23: Ti | E23: =IF($D23="","",IF(VLOOKUP($D23,#REF!,2)=0,"",VLOOKUP($D23,#REF!,2))) ->  | F23: =IF($D23="","",IF(VLOOKUP($D23,#REF!,3)="","",VLOOKUP($D23,#REF!,3))) ->  | G23: =IF($D23="","",IF(VLOOKUP($D23,#REF!,13)="","",VLOOKUP($D23,#REF!,13))) ->  | M23: =IF($D23="","",IF(VLOOKUP($D23,#REF!,15)="","",VLOOKUP($D23,#REF!,15))) ->  | O23: =IF($D23="","",IF(VLOOKUP($D23,#REF!,16)="","",VLOOKUP($D23,#REF!,16))) -> 
A24: 2010-04-21 | B24: On | E24: =IF($D24="","",IF(VLOOKUP($D24,#REF!,2)=0,"",VLOOKUP($D24,#REF!,2))) ->  | F24: =IF($D24="","",IF(VLOOKUP($D24,#REF!,3)="","",VLOOKUP($D24,#REF!,3))) ->  | G24: =IF($D24="","",IF(VLOOKUP($D24,#REF!,13)="","",VLOOKUP($D24,#REF!,13))) ->  | M24: =IF($D24="","",IF(VLOOKUP($D24,#REF!,15)="","",VLOOKUP($D24,#REF!,15))) ->  | O24: =IF($D24="","",IF(VLOOKUP($D24,#REF!,16)="","",VLOOKUP($D24,#REF!,16))) -> 
A25: 2010-04-22 | B25: To | E25: =IF($D25="","",IF(VLOOKUP($D25,#REF!,2)=0,"",VLOOKUP($D25,#REF!,2))) ->  | F25: =IF($D25="","",IF(VLOOKUP($D25,#REF!,3)="","",VLOOKUP($D25,#REF!,3))) ->  | G25: =IF($D25="","",IF(VLOOKUP($D25,#REF!,13)="","",VLOOKUP($D25,#REF!,13))) ->  | M25: =IF($D25="","",IF(VLOOKUP($D25,#REF!,15)="","",VLOOKUP($D25,#REF!,15))) ->  | O25: =IF($D25="","",IF(VLOOKUP($D25,#REF!,16)="","",VLOOKUP($D25,#REF!,16))) -> 
A26: 2010-04-23 | B26: Fr | E26: =IF($D26="","",IF(VLOOKUP($D26,#REF!,2)=0,"",VLOOKUP($D26,#REF!,2))) ->  | F26: =IF($D26="","",IF(VLOOKUP($D26,#REF!,3)="","",VLOOKUP($D26,#REF!,3))) ->  | G26: =IF($D26="","",IF(VLOOKUP($D26,#REF!,13)="","",VLOOKUP($D26,#REF!,13))) ->  | M26: =IF($D26="","",IF(VLOOKUP($D26,#REF!,15)="","",VLOOKUP($D26,#REF!,15))) ->  | O26: =IF($D26="","",IF(VLOOKUP($D26,#REF!,16)="","",VLOOKUP($D26,#REF!,16))) -> 
A27: 2010-04-24 | B27: Lø | E27: =IF($D27="","",IF(VLOOKUP($D27,#REF!,2)=0,"",VLOOKUP($D27,#REF!,2))) ->  | F27: =IF($D27="","",IF(VLOOKUP($D27,#REF!,3)="","",VLOOKUP($D27,#REF!,3))) ->  | G27: =IF($D27="","",IF(VLOOKUP($D27,#REF!,13)="","",VLOOKUP($D27,#REF!,13))) ->  | M27: =IF($D27="","",IF(VLOOKUP($D27,#REF!,15)="","",VLOOKUP($D27,#REF!,15))) ->  | O27: =IF($D27="","",IF(VLOOKUP($D27,#REF!,16)="","",VLOOKUP($D27,#REF!,16))) -> 
A28: 2010-04-25 | B28: Sø | E28: =IF($D28="","",IF(VLOOKUP($D28,#REF!,2)=0,"",VLOOKUP($D28,#REF!,2))) ->  | F28: =IF($D28="","",IF(VLOOKUP($D28,#REF!,3)="","",VLOOKUP($D28,#REF!,3))) ->  | G28: =IF($D28="","",IF(VLOOKUP($D28,#REF!,13)="","",VLOOKUP($D28,#REF!,13))) ->  | M28: =IF($D28="","",IF(VLOOKUP($D28,#REF!,15)="","",VLOOKUP($D28,#REF!,15))) ->  | O28: =IF($D28="","",IF(VLOOKUP($D28,#REF!,16)="","",VLOOKUP($D28,#REF!,16))) -> 
A29: 2010-04-26 | B29: Ma | E29: =IF($D29="","",IF(VLOOKUP($D29,#REF!,2)=0,"",VLOOKUP($D29,#REF!,2))) ->  | F29: =IF($D29="","",IF(VLOOKUP($D29,#REF!,3)="","",VLOOKUP($D29,#REF!,3))) ->  | G29: =IF($D29="","",IF(VLOOKUP($D29,#REF!,13)="","",VLOOKUP($D29,#REF!,13))) ->  | M29: =IF($D29="","",IF(VLOOKUP($D29,#REF!,15)="","",VLOOKUP($D29,#REF!,15))) ->  | O29: =IF($D29="","",IF(VLOOKUP($D29,#REF!,16)="","",VLOOKUP($D29,#REF!,16))) -> 
A30: 2010-04-27 | B30: Ti | E30: =IF($D30="","",IF(VLOOKUP($D30,#REF!,2)=0,"",VLOOKUP($D30,#REF!,2))) ->  | F30: =IF($D30="","",IF(VLOOKUP($D30,#REF!,3)="","",VLOOKUP($D30,#REF!,3))) ->  | G30: =IF($D30="","",IF(VLOOKUP($D30,#REF!,13)="","",VLOOKUP($D30,#REF!,13))) ->  | M30: =IF($D30="","",IF(VLOOKUP($D30,#REF!,15)="","",VLOOKUP($D30,#REF!,15))) ->  | O30: =IF($D30="","",IF(VLOOKUP($D30,#REF!,16)="","",VLOOKUP($D30,#REF!,16))) -> 
A31: 2010-04-28 | B31: On | E31: =IF($D31="","",IF(VLOOKUP($D31,#REF!,2)=0,"",VLOOKUP($D31,#REF!,2))) ->  | F31: =IF($D31="","",IF(VLOOKUP($D31,#REF!,3)="","",VLOOKUP($D31,#REF!,3))) ->  | G31: =IF($D31="","",IF(VLOOKUP($D31,#REF!,13)="","",VLOOKUP($D31,#REF!,13))) ->  | M31: =IF($D31="","",IF(VLOOKUP($D31,#REF!,15)="","",VLOOKUP($D31,#REF!,15))) ->  | O31: =IF($D31="","",IF(VLOOKUP($D31,#REF!,16)="","",VLOOKUP($D31,#REF!,16))) -> 
A32: 2010-04-29 | B32: =IF(A32="","",PROPER(TEXT(A32,"ddd"))) -> To | E32: =IF($D32="","",IF(VLOOKUP($D32,#REF!,2)=0,"",VLOOKUP($D32,#REF!,2))) ->  | F32: =IF($D32="","",IF(VLOOKUP($D32,#REF!,3)="","",VLOOKUP($D32,#REF!,3))) ->  | G32: =IF($D32="","",IF(VLOOKUP($D32,#REF!,13)="","",VLOOKUP($D32,#REF!,13))) ->  | M32: =IF($D32="","",IF(VLOOKUP($D32,#REF!,15)="","",VLOOKUP($D32,#REF!,15))) ->  | O32: =IF($D32="","",IF(VLOOKUP($D32,#REF!,16)="","",VLOOKUP($D32,#REF!,16))) -> 
A33: 2010-04-30 | B33: =IF(A33="","",PROPER(TEXT(A33,"ddd"))) -> Fr | C33: Store Bededag | E33: =IF($D33="","",IF(VLOOKUP($D33,#REF!,2)=0,"",VLOOKUP($D33,#REF!,2))) ->  | F33: =IF($D33="","",IF(VLOOKUP($D33,#REF!,3)="","",VLOOKUP($D33,#REF!,3))) ->  | G33: =IF($D33="","",IF(VLOOKUP($D33,#REF!,13)="","",VLOOKUP($D33,#REF!,13))) ->  | M33: =IF($D33="","",IF(VLOOKUP($D33,#REF!,15)="","",VLOOKUP($D33,#REF!,15))) ->  | O33: =IF($D33="","",IF(VLOOKUP($D33,#REF!,16)="","",VLOOKUP($D33,#REF!,16))) -> 
C34: 1. Juledag | E34: =IF($D34="","",IF(VLOOKUP($D34,#REF!,2)=0,"",VLOOKUP($D34,#REF!,2))) ->  | F34: =IF($D34="","",IF(VLOOKUP($D34,#REF!,3)="","",VLOOKUP($D34,#REF!,3))) ->  | G34: =IF($D34="","",IF(VLOOKUP($D34,#REF!,13)="","",VLOOKUP($D34,#REF!,13))) ->  | M34: =IF($D34="","",IF(VLOOKUP($D34,#REF!,15)="","",VLOOKUP($D34,#REF!,15))) ->  | O34: =IF($D34="","",IF(VLOOKUP($D34,#REF!,16)="","",VLOOKUP($D34,#REF!,16))) -> 
A35: Total timer | G35: =IF(SUM(G9:G34)<>"0",SUM(G4:G34),"") -> 0 | H35: =IF(SUM(H4:H34)<>"0",SUM(H4:H34),"") -> 0 | I35: 0 | J35: 0 | K35: 0 | L35: 0 | M35: 0 | N35: =SUM(N4:N34) -> 0 | O35: =SUM(O4:O34) -> 0
A36: Timer 1/100 | G36: =IF(G35<>"",ROUND(G35*24,2),"") -> 0 | H36: =IF(H35<>"",ROUND(H35*24,2),"") -> 0 | I36: 0 | J36: 0 | K36: 0 | L36: 0 | N36: 0 | O36: 0
A37: Satser | G37: =Satser!B7 -> 107.35 | H37: =Satser!B9 -> 36.35 | I37: =Satser!B12 -> 58.1 | J37: 18.8 | K37: 21.81 | L37: 28.68 | M37: 67
G38: =IF(G35<>"",G36*G37,"") -> 0 | H38: =IF(H35<>"",H36*H37,"") -> 0 | I38: 0 | J38: 0 | K38: 0 | L38: 0 | M38: =IF(M35<>"",M35*M37,"") -> 0
A40: Lønart
A41: 3025 | G41: =G35 -> 0
A42: 3425 | G42: =H35 -> 0
A43: 3426 | G43: =I35 -> 0
A44: Timer | G44: =SUM(G41:G43) -> 0 | H44: =IF(G44<>"",ROUND(G44*24,2),"") -> 0
H45: =G37*H44 -> 0

Sheet Satser
A3: Timeløn | B3: 114.42
A4: specielt tillæg
A5: Chauffør tillæg
A7: Samlet timeløn | B7: 107.35 | D7: 108.7
A9: overtidstillæg 50% | B9: 36.35 | D9: 36.5
A10: pr. time | B10: =B7+B9 -> 143.7
A12: overtidstillæg 100% | B12: 58.1 | D12: 58.9
A13: pr. time | B13: =B12+B7 -> 165.45
B15: 108.65 | D15: 110.15
A17: Aftentillæg | B17: 25.6 | F17: Arbejde mellem 18:00 og 22:00, lørdag dog fra kl 14:00
A18: Nattillæg | B18: 34.2 | F18: Arbejde mellem 22:00 og 06:00
B19: 46.95
A20: Søndagstillæg | B20: 28.68
A22: Ledbus | B22: 3
A23: Trafiftælling | B23: 5
A24: Delt tjeneste | B24: 67 | D24: pr. arbejdsdag
B26: 07:24:00

Sheet norm
A1: mandag | B1: 7.5 | C1: 07:30:00
A2: tirsdag | B2: 7.5 | C2: 07:30:00
A3: onsdag | B3: 7.5 | C3: 07:30:00
A4: torsdag | B4: 7.5 | C4: 07:30:00
A5: fredag | B5: 7 | C5: 07:00:00
A6: lørdag | B6: 0 | C6: 00:00:00
A7: søndag | B7: 0 | C7: 00:00:00

Sheet Ark2

Sheet Ark3
